fUSD/lending_fUSD_20240107
["ID","MTS","AMOUNT","RATE_DAILY","PERIOD"]
[310693820,1704646276052,526.00503714,0.0001944,2]
[310693821,1704646278436,7720.28535128,0.00020041,2]
[310693823,1704646387176,1253.35240784,0.00020697,5]
[310693827,1704646633991,175.9,0.000213,2]
[310693828,1704646635297,175.9,0.00021848,2]
[310693829,1704646740199,411.69,0.00020239,2]
[310693830,1704646792778,413.75178623,0.000249,9]
[310693831,1704646862716,357.2581,0.00022089,2]
[310693832,1704646872293,23900.0,0.00022086,2]
[310693833,1704646952484,200.0,0.00022036,2]
[310693834,1704646976233,1907.900048,0.00022078,2]
[310693835,1704646988124,401.35063277,0.00021423,2]
[310693836,1704646999121,2059.74168769,0.00021403,2]
[310693837,1704647025384,165.15,0.00021839,2]
[310693838,1704647046076,1024.81,0.00021761,2]
[310693839,1704647088818,331.001429,0.000229,6]
[310693840,1704647115000,151.0,0.00023,7]
[310693841,1704647127117,271.88,0.00021513,2]
[310693842,1704647131873,252.0,0.00023,7]
[310693843,1704647134999,252.0,0.00023,7]
[310693844,1704647142624,186.125087,0.00023,7]
[310693845,1704647151718,379.97306694,0.00022086,2]
[310693846,1704647155036,7500.0,0.00022085,2]
[310693847,1704647158065,7681.24499741,0.00022088,2]
[310693848,1704647158833,436.829121,0.00023,7]
[310693849,1704647162107,436.829121,0.00023,7]
[310693850,1704647186465,150.0,0.00021865,2]
[310693851,1704647186487,150.0,0.00021865,2]
[310693852,1704647186509,151.10444318,0.00021865,2]
[310693853,1704647186534,86.0707003,0.00021865,2]
[310693854,1704647201005,150.0,0.00019518,2]
[310693855,1704647201026,150.0,0.00019518,2]
[310693856,1704647201046,132.29,0.00019518,2]
[310693857,1704647201202,17.71,0.00021782,2]
[310693858,1704647201222,150.0,0.00021782,2]
[310693859,1704647201242,150.0,0.00021782,2]
[310693860,1704647201261,114.58,0.00021782,2]
[310693861,1704647215317,600.0,0.00021203,2]
[310693862,1704647238065,264.8011432,0.000229,6]
[310693863,1704647240795,166.531229,0.00023,7]
[310693864,1704647247807,400.0,0.000218,7]
[310693865,1704647249395,900.0,0.000219,7]
[310693866,1704647251509,1300.0,0.000227,8]
[310693867,1704647253641,1800.0,0.000228,8]
[310693868,1704647254269,175.9,0.00021088,2]
[310693869,1704647255555,175.9,0.00021636,2]
[310693870,1704647255828,2200.0,0.000229,8]
[310693871,1704647286666,300.0,0.000218,7]
[310693872,1704647288782,700.0,0.000219,7]
[310693873,1704647291074,1000.0,0.000227,8]
[310693874,1704647293123,1400.0,0.000228,8]
[310693875,1704647295244,1700.0,0.000229,8]
[310693876,1704647301801,150.0,0.00022,2]
[310693877,1704647305683,151.0,0.00023,7]
[310693878,1704647314652,151.0,0.00023,7]
[310693879,1704647315007,940.0,0.00021277,2]
[310693880,1704647321446,151.0,0.00023,7]
[310693881,1704647336854,300.0,0.00022,2]
[310693886,1704647359845,226.8,0.00023,7]
[310693887,1704647363100,226.8,0.00023,7]
[310693890,1704647377648,393.146209,0.00023,7]
[310693891,1704647380859,393.146209,0.00023,7]
[310693892,1704647388374,211.84091456,0.000229,6]
[310693893,1704647394919,210.414717,0.00023,7]
[310693897,1704647397656,210.414717,0.00023,7]
[310693898,1704647403363,207.97,0.00021251,2]
[310693899,1704647413416,324.85,0.00021251,2]
[310693900,1704647413816,324.85,0.00021362,2]
[310693901,1704647414028,324.85,0.00021474,2]
[310693902,1704647414240,324.85,0.00021586,2]
[310693903,1704647414449,324.85,0.00021698,2]
[310693904,1704647414678,324.85,0.0002181,2]
[310693905,1704647414894,324.85,0.00021922,2]
[310693944,1704647433833,-570.09,0.00022031,2]
[310693945,1704647433845,-1696.02245746,0.00022031,2]
[310693946,1704647433855,-5000.0,0.00022031,2]
[310693947,1704647433864,-553.13201144,0.00022032,2]
[310693948,1704647433874,-214.68178136,0.00022032,2]
[310693950,1704647433884,-155.0,0.00022032,2]
[310693951,1704647433893,-271.85079717,0.00022032,2]
[310693952,1704647433903,-159.36159943,0.00022032,2]
[310693953,1704647433913,-259.59190642,0.00022032,2]
[310693954,1704647433922,-324.85,0.00022033,2]
[310693955,1704647433931,-173.70569023,0.00022068,2]
[310693956,1704647433941,-155.0,0.00022069,2]
[310693957,1704647433950,-309.4541129,0.00022069,2]
[310693958,1704647433960,-155.0,0.0002207,2]
[310693959,1704647433969,-150.0,0.00022074,2]
[310693960,1704647433978,-2566.71495722,0.00022084,2]
[310693961,1704647433987,-1521.0888,0.00022085,2]
[310693962,1704647433996,-1632.3267,0.00022085,2]
[310693963,1704647434006,-207.9220019,0.00022086,2]
[310693964,1704647434015,-499.99,0.00022086,2]
[310693965,1704647434025,-573.80691523,0.00022087,2]
[310693966,1704647434049,-426.19308477,0.00022087,2]
[310693967,1704647434058,-839.29614704,0.00022088,2]
[310693968,1704647434070,-8603.6,0.00022088,2]
[310693969,1704647434083,-1853.68900406,0.00022088,2]
[310693970,1704647434099,-1183.63146754,0.00022088,2]
[310693971,1704647434123,-2573.48527145,0.00022088,2]
[310693980,1704647434336,-833.872,0.00022088,2]
[310693983,1704647434356,-1314.39513694,0.00022088,2]
[310693989,1704647434401,-1057.84970921,0.00022088,2]
[310693991,1704647434413,-12822.21986635,0.00022088,2]
[310693993,1704647434422,-324.85,0.00022145,2]
[310693995,1704647434432,-1168.19082122,0.00022173,2]
[310693997,1704647434442,-673.17,0.00022173,2]
[310693999,1704647434451,-13497.00254499,0.00022173,2]
[310694000,1704647434460,-417.95209149,0.00022175,2]
[310694001,1704647434469,-1852.14778372,0.00022183,2]
[310694002,1704647434479,-302.21498595,0.00022184,2]
[310694003,1704647434488,-326.90463927,0.00022184,2]
[310694004,1704647434500,-91.44455017,0.00022184,2]
[310694005,1704647434509,-175.9,0.00022184,2]
[310694006,1704647434519,-360.88881145,0.00022186,2]
[310694007,1704647434530,-1866.71503741,0.00022186,2]
[310694008,1704647434542,-831.39159651,0.00022186,2]
[310694009,1704647434560,-479.24393663,0.00022186,2]
[310694010,1704647434570,-38.60675033,0.00022186,2]
[310694011,1704647434598,-325.67982766,0.00022186,2]
[310694012,1704647434608,-291.87424358,0.00022186,2]
[310694013,1704647434621,-250.0,0.00022186,2]
[310694014,1704647434635,-151.72431377,0.00022186,2]
[310694015,1704647434646,-253.03478513,0.00022186,2]
[310694016,1704647434655,-203.79161909,0.00022186,2]
[310694017,1704647434667,-13.49288508,0.00022186,2]
[310694018,1704647434677,-290.50711492,0.00022186,2]
[310694039,1704647438251,-3022.6561441,0.00022186,2]
[310694042,1704647438261,-211.806731,0.00022186,2]
[310694043,1704647438270,-155.0,0.00022186,2]
[310694044,1704647438280,-2697.56907324,0.00022186,2]
[310694045,1704647438289,-863.75413107,0.00022186,2]
[310694046,1704647438299,-300.69965138,0.00022186,2]
[310694047,1704647438308,-484.17224842,0.00022186,2]
[310694048,1704647438318,-269.95716749,0.00022186,2]
[310694049,1704647438327,-3866.53307652,0.00022186,2]
[310694050,1704647438339,-355.32279869,0.00022186,2]
[310694051,1704647438348,-184.06324017,0.00022186,2]
[310694052,1704647438358,-156.29087205,0.00022186,2]
[310694053,1704647438369,-155.0,0.00022186,2]
[310694054,1704647438378,-1264.12879631,0.00022186,2]
[310694055,1704647438389,-6584.0,0.0002219,2]
[310694056,1704647438399,-1000.0,0.00022197,2]
[310694057,1704647438411,-161.49130176,0.00022197,2]
[310694058,1704647438423,-2500.0,0.00022199,2]
[310694059,1704647438435,-379.97306692,0.00022199,2]
[310694060,1704647438446,-150.0,0.00022237,2]
[310694061,1704647438456,-324.85,0.00022257,2]
[310694062,1704647438467,-190.83209518,0.00022288,2]
[310694063,1704647438478,-157.15051088,0.00022295,2]
[310694064,1704647438489,-1174.57417902,0.00022295,2]
[310694065,1704647438500,-500.11320425,0.00022295,2]
[310694066,1704647438510,-24411.0,0.00022297,2]
[310694067,1704647438520,-2251.57104303,0.00022298,2]
[310694068,1704647438530,-50524.78270927,0.00022298,2]
[310694069,1704647438543,-834.87280297,0.00022298,2]
[310694070,1704647438566,-468.48649487,0.00022298,2]
[310694071,1704647438578,-591.5,0.00022298,2]
[310694072,1704647438591,-1067.57473216,0.00022298,2]
[310694073,1704647438603,-3349.74534686,0.00022298,2]
[310694074,1704647438616,-267.32619371,0.00022298,2]
[310694075,1704647438630,-1233.29683829,0.00022298,2]
[310694076,1704647438641,-21998.6913,0.00022298,2]
[310694077,1704647438685,-105414.77113469,0.00022298,2]
[310694078,1704647438698,-123265.09656093,0.00022298,2]
[310694079,1704647438711,-218205.59825611,0.00022298,2]
[310694080,1704647438724,-409606.90514859,0.00022298,2]
[310694081,1704647438736,-67617.63238219,0.00022298,2]
[310694082,1704647438747,-50232.55968335,0.00022298,2]
[310694083,1704647438757,-5150.0,0.00022299,2]
[310694084,1704647438767,-150.0,0.00022299,2]
[310694085,1704647438777,-150.0,0.00022299,2]
[310694086,1704647438787,-22216.01580436,0.000223,2]
[310694087,1704647438890,-849.54466061,0.000223,2]
[310694088,1704647438948,-105941.7814412,0.000223,2]
[310694089,1704647438959,-467.34027095,0.00022306,2]
[310694090,1704647438969,-324.85,0.00022369,2]
[310694091,1704647438980,-324.85,0.00022481,2]
[310694092,1704647438990,-150.0,0.00022548,2]
[310694093,1704647438999,-324.85,0.00022593,2]
[310694094,1704647439009,-170.59147513,0.00022701,2]
[310694095,1704647439019,-324.85,0.00022704,2]
[310694096,1704647439028,-801.88639363,0.00022705,2]
[310694097,1704647439038,-193.21639134,0.00022705,4]
[310694098,1704647439048,-1330.58969504,0.00022705,2]
[310694099,1704647439057,-1430.5098868,0.00022705,2]
[310694100,1704647439067,-353.23671364,0.00022705,2]
[310694101,1704647439077,-175.9,0.00022732,2]
[310694102,1704647439088,-1024.81,0.00022739,2]
[310694103,1704647439098,-502352.97201505,0.000228,2]
[310694104,1704647439107,-163.38,0.00022805,2]
[310694105,1704647439117,-324.85,0.00022816,2]
[310694106,1704647439369,-40314.8916,0.00022899,2]
[310694107,1704647439379,-161.49130176,0.000229,2]
[310694108,1704647439393,-9967.21787681,0.000229,2]
[310694109,1704647439403,-175.04613099,0.000229,2]
[310694110,1704647439415,-732.73659302,0.000229,2]
[310694111,1704647439425,-189.16538814,0.000229,2]
[310694112,1704647439435,-160.79524321,0.000229,2]
[310694113,1704647439445,-379.97306692,0.000229,2]
[310694114,1704647439455,-324.85,0.00022928,2]
[310694115,1704647439465,-403.37,0.00022959,2]
[310694116,1704647439475,-406.0,0.00022986,2]
[310694117,1704647439486,-190.83209518,0.0002299,2]
[310694118,1704647439496,-240.54756677,0.00022998,2]
[310694119,1704647439505,-155.20238462,0.00022998,2]
[310694120,1704647439515,-158.28692601,0.00022998,2]
[310694121,1704647439524,-410.96513465,0.00022998,2]
[310694122,1704647439535,-182.7038877,0.00022999,2]
[310694123,1704647439545,-65639.32628731,0.00022999,2]
[310694124,1704647439554,-150.0,0.00022999,2]
[310694125,1704647439564,-150.0,0.00022999,2]
[310694126,1704647439573,-150.0,0.00022999,2]
[310694127,1704647439584,-271.2654693,0.00022999,2]
[310694128,1704647439593,-808060.62805093,0.00023,2]
[310694129,1704647439602,-373199.43379532,0.00023,2]
[310694130,1704647439651,-3161.73199585,0.00023,2]
[310694131,1704647439662,-5315.05130463,0.00023,2]
[310694132,1704647439692,-5115.83735956,0.00023,2]
[310694133,1704647439703,-492.67016026,0.00023,2]
[310694134,1704647439715,-474.85476356,0.00023,2]
[310694135,1704647439730,-1126.46725379,0.00023,2]
[310694136,1704647439744,-506.929457,0.00023,2]
[310694137,1704647439756,-12989.99999999,0.00023,2]
[310694138,1704647439826,-1405550.52539432,0.00023,2]
[310694139,1704647439837,-932.02592622,0.00023,2]
[310694140,1704647439847,-108709.86245192,0.00023,2]
[310694141,1704647439857,-550.0,0.00023,3]
[310694142,1704647439867,-14790.867532,0.00023,2]
[310694143,1704647439877,-283.17,0.00023,2]
[310694144,1704647439887,-324.85,0.0002304,2]
[310694145,1704647439896,-10556.44752612,0.000231,2]
[310694146,1704647439906,-151.82,0.00023106,2]
[310694147,1704647439916,-2414.63254129,0.0002313,2]
[310694148,1704647439926,-324.85,0.00023152,2]
[310694149,1704647439939,-324.85,0.00023264,2]
[310694150,1704647439948,-175.9,0.0002328,2]
[310694151,1704647439959,-324.85,0.00023375,2]
[310694152,1704647439969,-151.82,0.00023491,2]
[310694153,1704647439979,-1024.81,0.00023717,2]
[310694154,1704647439989,-175.9,0.00023828,2]
[310694155,1704647439999,-151.82,0.00023877,2]
[310694156,1704647440008,-940.0,0.00023937,2]
[310694157,1704647440018,-430.5164237,0.00024,2]
[310694158,1704647440030,-200.66411042,0.00024,2]
[310694159,1704647440040,-155.67956808,0.00024,2]
[310694160,1704647440049,-432.29,0.00024046,2]
[310694161,1704647440059,-9967.2178767,0.00024047,2]
[310694162,1704647440070,-176.03,0.00024117,2]
[310694163,1704647440084,-174.86,0.00024178,2]
[310694164,1704647440094,-151.82,0.00024262,2]
[310694165,1704647440106,-210.0,0.00024281,2]
[310694166,1704647440116,-167.0,0.00024297,2]
[310694167,1704647440126,-267.17329507,0.00024376,2]
[310694168,1704647440138,-151.82,0.00024647,2]
[310694169,1704647440148,-250.0,0.00024658,2]
[310694170,1704647440158,-150.0,0.00024658,2]
[310694171,1704647440167,-150.0,0.00024658,2]
[310694172,1704647440177,-150.0,0.00024658,2]
[310694173,1704647440187,-150.0,0.00024658,2]
[310694174,1704647440197,-150.0,0.00024658,2]
[310694175,1704647440206,-150.0,0.00024658,2]
[310694176,1704647440216,-150.0,0.00024658,2]
[310694177,1704647440226,-150.0,0.00024658,2]
[310694178,1704647440235,-150.0,0.00024658,2]
[310694179,1704647440245,-150.0,0.00024658,2]
[310694180,1704647440254,-150.0,0.00024658,2]
[310694181,1704647440264,-150.0,0.00024658,2]
[310694182,1704647440274,-150.0,0.00024658,2]
[310694183,1704647440284,-150.0,0.00024658,2]
[310694184,1704647440293,-150.0,0.00024658,2]
[310694185,1704647440303,-150.0,0.00024658,2]
[310694186,1704647440313,-150.0,0.00024658,2]
[310694187,1704647440323,-150.0,0.00024658,2]
[310694188,1704647440334,-150.0,0.00024658,2]
[310694189,1704647440345,-150.0,0.00024658,2]
[310694190,1704647440355,-1024.81,0.00024696,2]
[310694191,1704647440364,-732.73659301,0.00024702,2]
[310694192,1704647440374,-200.0,0.00025,2]
[310694193,1704647440384,-322.11967009,0.00025,2]
[310694194,1704647440394,-201.35180856,0.00025,2]
[310694195,1704647440403,-334.38231791,0.00025,2]
[310694196,1704647440413,-962.51555815,0.00025,2]
[310694197,1704647440423,-166.9760429,0.00025,2]
[310694198,1704647440433,-1245.75987952,0.00025,2]
[310694199,1704647440443,-302.71173098,0.00025,2]
[310694200,1704647440454,-3034.08810881,0.00025,2]
[310694201,1704647440465,-532.64161305,0.00025,2]
[310694202,1704647440475,-600.0,0.00025,3]
[310694203,1704647440485,-650.0,0.00025,2]
[310694204,1704647440495,-292.47295802,0.00025,2]
[310694205,1704647440505,-666.61423848,0.00025,2]
[310694206,1704647440515,-160.79524319,0.00025003,2]
[310694207,1704647440525,-151.82,0.00025032,2]
[310694208,1704647440534,-63742.19762883,0.0002509,2]
[310694209,1704647440545,-3251.9303777,0.00025111,2]
[310694210,1704647440559,-9967.2178767,0.00025194,2]
[310694211,1704647440569,-174.86,0.00025315,2]
[310694212,1704647440580,-151.82,0.00025417,2]
[310694213,1704647440591,-176.03,0.0002558,2]
[310694214,1704647440602,-1024.81,0.00025674,2]
[310694215,1704647440612,-211.84091454,0.0002585,11]
[310694216,1704647440622,-150.0,0.00026079,2]
[310694217,1704647440635,-6650.09,0.00026137,3]
[310694218,1704647440645,-167.0,0.00026149,2]
[310694219,1704647440655,-187.46180191,0.000263,4]
[310694220,1704647440664,-432.29,0.0002631,2]
[310694221,1704647440674,-9967.2178767,0.00026341,2]
[310694222,1704647440684,-174.86,0.00026452,2]
[310694223,1704647440693,-732.73659301,0.00026505,3]
[310694224,1704647440703,-726.27,0.00026514,2]
[310694226,1704647440713,-714.92,0.00026514,2]
[310694228,1704647440723,-940.0,0.00026596,2]
[310694229,1704647440733,-1024.81,0.00026653,2]
[310694230,1704647440751,-239.998,0.000267,2]
[310694232,1704647440765,-210.0,0.00026709,2]
[310694233,1704647440776,-800.0,0.0002678,2]
[310694234,1704647440786,-2005.639,0.00026979,2]
[310694235,1704647440796,-2897.0,0.00026979,2]
[310694236,1704647440807,-5561.0,0.00026979,2]
[310694237,1704647440817,-757.152,0.00026979,2]
[310694238,1704647440827,-2267.0,0.00026979,2]
[310694239,1704647440838,-4393.0,0.00026979,2]
[310694240,1704647440848,-842.78,0.00026979,2]
[310694241,1704647440858,-19654.0,0.00026979,2]
[310694242,1704647440868,-1027.0,0.00026979,2]
[310694243,1704647440879,-151.0,0.00026979,7]
[310694244,1704647440889,-151.0,0.00026979,7]
[310694245,1704647440900,-151.0,0.00026979,7]
[310694246,1704647440911,-226.8,0.00026979,7]
[310694247,1704647440921,-226.8,0.00026979,7]
[310694248,1704647440932,-393.146209,0.00026979,7]
[310694249,1704647440942,-393.146209,0.00026979,7]
[310694250,1704647440953,-210.414717,0.00026979,7]
[310694251,1704647440965,-210.414717,0.00026979,7]
[310694252,1704647440977,-22505.0,0.00027,2]
[310694253,1704647440987,-650.0,0.00027,3]
[310694254,1704647440997,-2136.0,0.00027,2]
[310694255,1704647441008,-151.0,0.00027,7]
[310694256,1704647441019,-176.03,0.00027044,2]
[310694257,1704647441030,-389.0,0.0002707,2]
[310694258,1704647441040,-844.311,0.0002707,2]
[310694259,1704647441050,-1849.0,0.0002707,2]
[310694260,1704647441061,-332.868,0.0002707,2]
[310694261,1704647441071,-427.532,0.0002707,2]
[310694262,1704647441084,-943.0,0.0002707,2]
[310694263,1704647441094,-1334.266,0.0002707,2]
[310694264,1704647441105,-315.888,0.0002707,2]
[310694265,1704647441117,-1928.0,0.0002707,2]
[310694266,1704647441128,-1138.0,0.0002707,2]
[310694267,1704647441139,-994.0,0.0002707,2]
[310694268,1704647441149,-508.449,0.0002707,2]
[310694269,1704647441159,-506.0,0.0002707,2]
[310694270,1704647441169,-425.0,0.0002707,2]
[310694271,1704647441180,-882.0,0.0002707,2]
[310694272,1704647441191,-233.0,0.0002707,2]
[310694273,1704647441201,-318.0,0.0002707,2]
[310694274,1704647441212,-258.399193,0.0002707,7]
[310694275,1704647441223,-258.399193,0.0002707,7]
[310694276,1704647441234,-160.79524319,0.00027105,3]
[310694277,1704647441245,-204.0,0.00027206,2]
[310694278,1704647441255,-13144.5,0.00027297,2]
[310694279,1704647441266,-155.0,0.00027397,2]
[310694280,1704647441275,-500.0,0.00027397,2]
[310694281,1704647441284,-500.0,0.00027397,2]
[310694282,1704647441294,-500.0,0.00027397,2]
[310694283,1704647441303,-500.0,0.00027397,2]
[310694284,1704647441313,-500.0,0.00027397,2]
[310694285,1704647441323,-500.0,0.00027397,2]
[310694286,1704647441332,-500.0,0.00027397,2]
[310694287,1704647441343,-500.0,0.00027397,2]
[310694288,1704647441352,-500.0,0.00027397,2]
[310694289,1704647441362,-500.0,0.00027397,2]
[310694290,1704647441371,-500.0,0.00027397,2]
[310694291,1704647441381,-500.0,0.00027397,2]
[310694292,1704647441391,-185.28732773,0.00027397,2]
[310694293,1704647441402,-223.20855706,0.00027397,2]
[310694294,1704647441411,-5940.0,0.00027397,2]
[310694295,1704647441421,-15620.0,0.00027397,4]
[310694296,1704647441430,-762.91,0.00027397,2]
[310694297,1704647441441,-250.0,0.00027397,2]
[310694298,1704647441452,-500.0,0.00027397,2]
[310694299,1704647441462,-2000.0,0.000274,2]
[310694300,1704647441472,-300.0,0.000274,2]
[310694301,1704647441482,-3000.0,0.000274,2]
[310694302,1704647441492,-500.0,0.000274,2]
[310694303,1704647441502,-250.0,0.000274,2]
[310694304,1704647441511,-522.75631848,0.000274,2]
[310694305,1704647441521,-9967.2178767,0.00027488,2]
[310694306,1704647441531,-672.47944908,0.000275,4]
[310694307,1704647441541,-500.29256766,0.000275,2]
[310694308,1704647441551,-10683.28144993,0.00027507,7]
[310694309,1704647441561,-1000.0,0.00027507,7]
[310694310,1704647441570,-531.25553546,0.00027507,2]
[310694311,1704647441580,-563.92291757,0.00027507,2]
[310694312,1704647441592,-632.33958968,0.00027507,2]
[310694313,1704647441602,-275.78999145,0.00027507,2]
[310694314,1704647441612,-319.85494104,0.00027507,2]
[310694315,1704647441623,-1699.52116345,0.00027507,2]
[310694316,1704647441635,-762.91,0.00027556,2]
[310694317,1704647441645,-167.0,0.00027587,2]
[310694318,1704647441656,-174.86,0.0002759,2]
[310694319,1704647441667,-1024.81,0.00027631,2]
[310694320,1704647441677,-762.91,0.00027714,2]
[310694321,1704647441687,-762.91,0.00027872,2]
[310694322,1704647441697,-357.56774313,0.00027874,2]
[310694323,1704647441706,-23628.25,0.00027945,2]
[310694324,1704647441716,-1635.93,0.00027945,2]
[310694327,1704647441726,-202.53914952,0.00028,2]
[310694328,1704647441736,-687.02354933,0.00028,2]
[310694330,1704647441746,-749.86,0.00028,7]
[310694332,1704647441756,-550.55,0.00028,7]
[310694353,1704647441766,-150.0,0.00028,7]
[310694355,1704647441972,-762.91,0.0002803,2]
[310694357,1704647441981,-762.91,0.00028189,2]
[310694359,1704647441990,-801.88639361,0.00028303,2]
[310694361,1704647442000,-1330.58969502,0.00028303,2]
[310694363,1704647442009,-1430.5098868,0.00028303,2]
[310694365,1704647442019,-353.23671364,0.00028303,2]
[310694367,1704647442030,-167.0,0.00028307,2]
[310694370,1704647442040,-732.73659301,0.00028307,4]
[310694371,1704647442049,-762.91,0.00028347,2]
[310694374,1704647442059,-204.0,0.0002842,4]
[310694376,1704647442068,-762.91,0.00028505,2]
[310694378,1704647442078,-7999.99,0.00028505,6]
[310694380,1704647442088,-176.03,0.00028507,2]
[310694382,1704647442098,-432.29,0.00028574,2]
[310694383,1704647442108,-1024.81,0.0002861,2]
[310694386,1704647442117,-9967.2178767,0.00028635,2]
[310694387,1704647442127,-150.0,0.00028663,2]
[310694390,1704647442136,-762.91,0.00028664,2]
[310694392,1704647442146,-174.86,0.00028727,2]
[310694394,1704647442156,-1500.0,0.00028727,2]
[310694396,1704647442165,-155.0,0.00028767,2]
[310694397,1704647442177,-1000.0,0.000288,2]
[310694400,1704647442186,-211.84091454,0.000288,15]
[310694402,1704647442196,-762.91,0.00028822,2]
[310694404,1704647442205,-500.0,0.00028974,2]
[310694406,1704647442215,-500.0,0.00028982,2]
[310694408,1704647442224,-150.0,0.0002899,3]
[310694410,1704647442233,-500.0,0.00028991,2]
[310694412,1704647442242,-700.0,0.00029,3]
[310694414,1704647442252,-500.0,0.00029,2]
[310694416,1704647442261,-167.0,0.00029026,2]
[310694418,1704647442270,-500.0,0.0002907,2]
[310694420,1704647442279,-160.79524319,0.00029208,4]
[310694422,1704647442289,-940.0,0.00029256,2]
[310694424,1704647442298,-1500.0,0.0002943,2]
[310694426,1704647442307,-1500.0,0.00029475,2]
[310694428,1704647442317,-1024.81,0.00029588,2]
[310694430,1704647442328,-204.0,0.00029635,6]
[310694431,1704647442339,-200.0,0.00029646,3]
[310694433,1704647442351,-800.0,0.00029646,5]
[310694435,1704647442360,-1000.0,0.00029738,2]
[310694437,1704647442370,-500.0,0.00029743,2]
[310694439,1704647442379,-9967.2178767,0.00029781,2]
[310694441,1704647442388,-195.49419204,0.000298,2]
[310694443,1704647442398,-2060.792418,0.000298,2]
[310694445,1704647442407,-1812.0,0.000298,2]
[310694447,1704647442416,-1500.0,0.0002981,2]
[310694448,1704647442427,-814.98537511,0.000299,2]
[310694449,1704647442437,-400.0,0.000299,10]
[310694450,1704647442446,-55555.0,0.000299,2]
[310694451,1704647442458,-300.0,0.000299,10]
[310694452,1704647442467,-150.0,0.00029914,2]
[310694453,1704647442476,-150.0,0.00029919,2]
[310694454,1704647442486,-184.90562178,0.00029928,2]
[310694455,1704647442495,-190.01484999,0.00029939,2]
[310694456,1704647442504,-150.0,0.00029942,2]
[310694457,1704647442514,-2897.0,0.00029979,2]
[310694458,1704647442524,-2267.0,0.00029979,2]
[310694459,1704647442534,-19654.0,0.00029979,2]
[310694460,1704647442543,-1027.0,0.00029979,2]
[310694461,1704647442556,-226.8,0.00029979,7]
[310694462,1704647442566,-226.8,0.00029979,7]
[310694463,1704647442575,-393.146209,0.00029979,7]
[310694464,1704647442585,-393.146209,0.00029979,7]
[310694465,1704647442595,-210.414717,0.00029979,7]
[310694466,1704647442604,-210.414717,0.00029979,7]
[310694467,1704647442614,-150.0,0.0002998,2]
[310694468,1704647442625,-1902.46315614,0.00029997,2]
[310694469,1704647442634,-445.03249275,0.0003,4]
[310694470,1704647442643,-199.9631004,0.0003,4]
[310694471,1704647442653,-811.96653213,0.0003,4]
[310694472,1704647442665,-2732.34274577,0.0003,2]
[310694473,1704647442675,-89684.86617905,0.0003,4]
[310694497,1704647443230,-187306.60605934,0.0003,4]
[310694502,1704647443242,-31066.04390476,0.0003,4]
[310694507,1704647443251,-69570.44388221,0.0003,4]
[310694633,1704647444362,23900.0,0.00021958,2]
[310694634,1704647444488,-3155.29336634,0.0003,4]
[310694635,1704647444499,-17918.10762306,0.0003,2]
[310694636,1704647444510,-581.07450079,0.0003,2]
[310694637,1704647444519,-461.2087241,0.0003,4]
[310694638,1704647444529,-1802.90872975,0.0003,4]
[310694639,1704647444545,-290.59473255,0.0003,4]
[310694640,1704647444555,-155.0,0.0003,2]
[310694641,1704647444567,-2500.0,0.0003,2]
[310694642,1704647444578,-126304.40494945,0.0003,2]
[310694643,1704647444590,-641.21192788,0.0003,2]